[Event "ROU-chT 1st League 2019"]
[Site "Mamaia"]
[Date "2019.09.23"]
[Round "3.3"]
[White "Ciorgovean, Iustin"]
[Black "Manolache, Marius"]
[Result "0-1"]
[ECO "B06"]
[WhiteElo "2331"]
[BlackElo "2548"]
[Annotator "ChessBase"]
[PlyCount "108"]
[EventDate "2019.09.21"]
[EventType "team-tourn"]
[EventCountry "ROU"]
[SourceTitle "playchess.com"]
[Source "ChessBase"]
[SourceQuality "1"]
[TimeControl "40/5400+30:1800+30"]

1. d4 {[%emt 0:00:00]} d6 {[%emt 0:03:13]} 2. Nf3 {[%emt 0:00:00]} g6 {[%emt 0:00:15]} 3. c4 {[%emt 0:01:03]} Bg7 {[%emt 0:00:10]} 4. e4 {[%emt 0:00:15]} Bg4 {[%emt 0:00:34]} 5. Be2 {[%emt 0:00:40]} Nd7 {[%emt 0:00:39]} 6. O-O {[%emt 0:05:14]} e5 {[%emt 0:07:07]} 7. d5 {[%emt 0:02:32]} Ne7 {[%emt 0:02:48]} 8. Nc3 {[%emt 0:02:37]} O-O {[%emt 0:00:19]} 9. Be3 {[%emt 0:04:48]} a5 {[%emt 0:01:18]} 10. b3 {[%emt 0:10:19]} Kh8 {[%emt 0:07:06]} 11. Ne1 {[%emt 0:12:10]} Bxe2 {[%emt 0:00:10]} 12. Qxe2 {[%emt 0:00:03]} f5 {[%emt 0:07:45]} 13. f3 {[%emt 0:00:20]} b6 {[%emt 0:01:15]} 14. Nd3 {[%emt 0:03:37]} Nc5 {[%emt 0:01:07]} 15. Rab1 {[%emt 0:04:16]} Qd7 {[%emt 0:02:06]} 16. a3 {[%emt 0:02:59]} Ng8 {[%emt 0:03:58]} 17. b4 {[%emt 0:04:02]} axb4 {[%emt 0:02:09]} 18. axb4 {[%emt 0:00:11]} Nxd3 {[%emt 0:08:15]} 19. Qxd3 {[%emt 0:00:06]} Ra3 {[%emt 0:00:11]} 20. Bc1 {[%emt 0:04:37]} fxe4 {[%emt 0:04:55]} 21. fxe4 {[%emt 0:01:52]} Rxf1+ {[%emt 0:00:17]} 22. Kxf1 {[%emt 0:00:07]} Ra8 {[%emt 0:00:05]} 23. Kg1 {[%emt 0:02:06]} Nf6 {[%emt 0:00:23]} 24. Bd2 {[%emt 0:03:40]} Nh5 {[%emt 0:06:40]} 25. g3 {[%emt 0:08:42]} Nf6 {[%emt 0:05:52]} 26. Kg2 {[%emt 0:03:06]} h5 {[%emt 0:04:35]} 27. h3 {[%emt 0:02:54]} Ra3 {[%emt 0:04:05]} 28. Bc1 {[%emt 0:03:35]} Ra8 {[%emt 0:01:02]} 29. Bd2 {[%emt 0:00:12]} Kh7 {[%emt 0:01:29]} 30. Bg5 {[%emt 0:06:05]} Ra3 {[%emt 0:00:43]} 31. Bc1 {[%emt 0:00:35]} Ra8 {[%emt 0:00:32]} 32. Bg5 {[%emt 0:00:06]} Ng8 {[%emt 0:06:46]} 33. c5 {[%emt 0:00:11]} bxc5 {[%emt 0:02:25]} 34. bxc5 {[%emt 0:00:25]} dxc5 {[%emt 0:00:10]} 35. Qb5 {[%emt 0:00:40]} Qd6 {[%emt 0:01:10]} 36. Na4 {[%emt 0:00:36]} Nf6 {[%emt 0:01:13]} 37. Nxc5 {[%emt 0:00:43]} Ra2+ {[%emt 0:00:16]} 38. Kg1 {[%emt 0:03:31]} Nxd5 {[%emt 0:04:50]} 39. Qc4 {[%emt 0:02:02]} Ra5 {[%emt 0:03:38]} 40. Nb7 {[%emt 0:00:00]} Qa3 {[%emt 0:00:00]} 41. Rb3 {[%emt 0:24:48]} Qa1+ {[%emt 0:00:30]} 42. Bc1 {[%emt 0:00:14]} Ra4 {[%emt 0:01:41]} 43. Qc2 {[%emt 0:01:58]} Qd4+ {[%emt 0:04:25]} 44. Kg2 {[%emt 0:00:09]} Rc4 {[%emt 0:01:17]} 45. Qd3 {[%emt 0:01:10]} Qxe4+ {[%emt 0:07:16]} 46. Qxe4 {[%emt 0:00:04]} Rxe4 {[%emt 0:00:04]} 47. Rb5 {[%emt 0:01:46]} Re2+ {[%emt 0:01:53]} 48. Kf3 {[%emt 0:01:32]} Nc3 {[%emt 0:00:24]} 49. Rc5 {[%emt 0:01:28]} e4+ {[%emt 0:00:14]} 50. Kf4 {[%emt 0:00:32]} c6 {[%emt 0:07:49]} 51. g4 {[%emt 0:03:10]} Nd5+ {[%emt 0:02:12]} 52. Kg3 {[%emt 0:00:12]} Be5+ {[%emt 0:01:18]} 53. Kh4 {[%emt 0:00:09]} Bf6+ {[%emt 0:01:06]} 54. Kg3 {[%emt 0:01:49]} h4# {[%emt 0:00:09]} 0-1

[Event "ROU-chT 1st League 2019"]
[Site "Mamaia"]
[Date "2019.09.23"]
[Round "3.4"]
[White "Anton, Teodor"]
[Black "Barzanu, Iulian"]
[Result "1-0"]
[ECO "A62"]
[WhiteElo "2445"]
[BlackElo "2187"]
[Annotator "NA"]
[PlyCount "36"]
[EventDate "2019.09.21"]
[EventType "team-tourn"]
[EventCountry "ROU"]
[SourceTitle "playchess.com"]
[Source "ChessBase"]
[SourceQuality "1"]
[TimeControl "40/5400+30:1800+30"]

1. d4 {[%emt 0:00:00]} Nf6 {[%emt 0:00:30]} 2. Nf3 {[%emt 0:00:00]} g6 {[%emt 0:00:42]} 3. c4 {[%emt 0:00:05]} Bg7 {[%emt 0:00:31]} 4. g3 {[%emt 0:01:21]} c5 {[%emt 0:01:12]} 5. d5 {[%emt 0:01:39]} e6 {[%emt 0:03:17]} 6. Bg2 {[%emt 0:00:27]} exd5 {[%emt 0:00:21]} 7. cxd5 {[%emt 0:00:06]} d6 {[%emt 0:01:14]} 8. Nc3 {[%emt 0:00:25]} O-O {[%emt 0:00:21]} 9. O-O {[%emt 0:00:08]} Re8 {[%emt 0:00:38]} 10. Bf4 {[%emt 0:00:20]} a6 {[%emt 0:01:55]} 11. a4 {[%emt 0:00:12]} Bf5 {[%emt 0:03:30]} 12. Nd2 {[%emt 0:02:09]} Nh5 {[%emt 0:06:14]} 13. e4 {[%emt 0:02:34]} Nxf4 {[%emt 0:03:07]} 14. gxf4 {[%emt 0:00:07]} Bc8 {[%emt 0:05:29]} 15. Nc4 {[%emt 0:00:41]} Bh6 {[%emt 0:18:56]} 16. Qf3 {[%emt 0:04:40]} Qf6 {[%emt 0:15:25]} 17. Nb6 {[%emt 0:00:29]} Ra7 {[%emt 0:01:57]} 18. Nxc8 {[%emt 0:00:10]} Ra8 1-0

[Event "ROU-chT 1st League 2019"]
[Site "Mamaia"]
[Date "2019.09.23"]
[Round "3.6"]
[White "Marasescu, Ioan"]
[Black "Micu, Iulian"]
[Result "0-1"]
[ECO "E90"]
[WhiteElo "2298"]
[BlackElo "2165"]
[Annotator "NA"]
[PlyCount "50"]
[EventDate "2019.09.21"]
[EventType "team-tourn"]
[EventCountry "ROU"]
[SourceTitle "playchess.com"]
[Source "ChessBase"]
[SourceQuality "1"]
[TimeControl "40/5400+30:1800+30"]

1. Nf3 {[%emt 0:00:00]} Nf6 {[%emt 0:00:03]} 2. c4 {[%emt 0:00:23]} g6 {[%emt 0:02:11]} 3. Nc3 {[%emt 0:01:04]} Bg7 {[%emt 0:00:18]} 4. e4 {[%emt 0:00:27]} d6 {[%emt 0:00:52]} 5. d4 {[%emt 0:00:11]} O-O {[%emt 0:00:43]} 6. Be3 {[%emt 0:04:57]} e5 {[%emt 0:08:29]} 7. dxe5 {[%emt 0:09:42]} dxe5 {[%emt 0:00:59]} 8. Qxd8 {[%emt 0:00:22]} Rxd8 {[%emt 0:00:03]} 9. Nd5 {[%emt 0:00:06]} Nxd5 {[%emt 0:01:34]} 10. cxd5 {[%emt 0:00:14]} c6 {[%emt 0:00:33]} 11. Bc4 {[%emt 0:01:03]} cxd5 {[%emt 0:13:04]} 12. Bxd5 {[%emt 0:02:25]} Nc6 {[%emt 0:00:19]} 13. O-O {[%emt 0:10:56]} Nb4 {[%emt 0:20:53]} 14. Bb3 {[%emt 0:04:02]} Nd3 {[%emt 0:01:27]} 15. Ng5 {[%emt 0:07:14]} Rd7 {[%emt 0:22:06]} 16. Nxf7 {[%emt 0:08:37]} Kf8 {[%emt 0:04:32]} 17. Ng5 {[%emt 0:06:03]} Bf6 {[%emt 0:02:42]} 18. Ne6+ {[%emt 0:08:07]} Ke7 {[%emt 0:00:51]} 19. Rfd1 {[%emt 0:19:50]} b5 {[%emt 0:11:49]} 20. Bd5 {[%emt 0:07:16]} Nxb2 {[%emt 0:01:41]} 21. Rdb1 {[%emt 0:02:05]} Rxd5 {[%emt 0:00:32]} 22. exd5 Bxe6 23. Rxb2 {[%emt 0:05:19]} e4 {[%emt 0:00:53]} 24. Rxb5 {[%emt 0:00:15]} Bxa1 {[%emt 0:00:11]} 25. Rb7+ {[%emt 0:00:09]} Bd7 {[%emt 0:00:20]} 0-1

[Event "ROU-chT 1st League 2019"]
[Site "Mamaia"]
[Date "2019.09.23"]
[Round "3.11"]
[White "Secheres, Adrian-Simion"]
[Black "Vasile, Claudiu-Daniel"]
[Result "1-0"]
[ECO "D37"]
[WhiteElo "2397"]
[BlackElo "2233"]
[Annotator "NA"]
[PlyCount "63"]
[EventDate "2019.09.21"]
[EventType "team-tourn"]
[EventCountry "ROU"]
[SourceTitle "playchess.com"]
[Source "ChessBase"]
[SourceQuality "1"]
[TimeControl "40/5400+30:1800+30"]

1. d4 {[%emt 0:00:00]} d5 {[%emt 0:00:00]} 2. c4 {[%emt 0:00:00]} e6 {[%emt 0:00:00]} 3. Nc3 {[%emt 0:00:13]} Nf6 {[%emt 0:00:00]} 4. Nf3 {[%emt 0:00:23]} Be7 {[%emt 0:00:34]} 5. Bf4 {[%emt 0:00:11]} O-O {[%emt 0:00:56]} 6. e3 {[%emt 0:00:10]} b6 {[%emt 0:01:48]} 7. Rc1 {[%emt 0:00:08]} Bb7 {[%emt 0:01:22]} 8. cxd5 {[%emt 0:00:14]} Nxd5 {[%emt 0:01:12]} 9. Nxd5 {[%emt 0:00:07]} Qxd5 {[%emt 0:00:31]} 10. a3 {[%emt 0:00:07]} c5 {[%emt 0:02:43]} 11. Bc4 {[%emt 0:00:12]} Qd8 {[%emt 0:01:56]} 12. O-O {[%emt 0:06:43]} Nc6 {[%emt 0:07:46]} 13. dxc5 {[%emt 0:04:30]} bxc5 {[%emt 0:04:41]} 14. Qc2 {[%emt 0:06:50]} Qb6 {[%emt 0:10:19]} 15. Bd3 {[%emt 0:08:53]} h6 {[%emt 0:09:29]} 16. Nd2 {[%emt 0:19:02]} Na5 {[%emt 0:21:34]} 17. Bh7+ {[%emt 0:12:21]} Kh8 {[%emt 0:00:33]} 18. Be4 {[%emt 0:00:07]} Bxe4 {[%emt 0:07:25]} 19. Nxe4 {[%emt 0:00:40]} Rac8 {[%emt 0:08:11]} 20. Be5 {[%emt 0:04:31]} Nb7 {[%emt 0:13:49]} 21. Ng3 {[%emt 0:13:58]} f6 {[%emt 0:03:00]} 22. Bc3 {[%emt 0:00:24]} Kg8 {[%emt 0:02:23]} 23. Nh5 {[%emt 0:01:48]} Rf7 {[%emt 0:00:24]} 24. Qg6 {[%emt 0:04:03]} Nd6 {[%emt 0:00:43]} 25. e4 {[%emt 0:02:02]} Nb5 {[%emt 0:00:26]} 26. Bd2 {[%emt 0:02:33]} f5 {[%emt 0:00:29]} 27. e5 {[%emt 0:03:10]} Bg5 {[%emt 0:00:16]} 28. Bxg5 {[%emt 0:00:47]} hxg5 {[%emt 0:00:02]} 29. Nf6+ {[%emt 0:01:57]} Kf8 {[%emt 0:00:24]} 30. Nh7+ {[%emt 0:00:15]} Kg8 {[%emt 0:00:29]} 31. Nxg5 {[%emt 0:00:09]} Re7 {[%emt 0:00:13]} 32. Qh7+ {[%emt 0:00:05]} 1-0

[Event "ROU-chT 1st League 2019"]
[Site "Mamaia"]
[Date "2019.09.23"]
[Round "3.12"]
[White "Stanciu, Andreea-Briana"]
[Black "Ognean, Mihnea-Ionut"]
[Result "0-1"]
[ECO "B09"]
[WhiteElo "1884"]
[BlackElo "2285"]
[Annotator "NA"]
[PlyCount "88"]
[EventDate "2019.09.21"]
[EventType "team-tourn"]
[EventCountry "ROU"]
[SourceTitle "playchess.com"]
[Source "ChessBase"]
[SourceQuality "1"]
[TimeControl "40/5400+30:1800+30"]

1. e4 {[%emt 0:00:00]} d6 {[%emt 0:00:00]} 2. d4 {[%emt 0:00:00]} Nf6 {[%emt 0:00:00]} 3. Nc3 {[%emt 0:00:00]} g6 {[%emt 0:00:04]} 4. f4 {[%emt 0:00:00]} Bg7 {[%emt 0:00:14]} 5. Nf3 {[%emt 0:00:00]} O-O {[%emt 0:00:09]} 6. Bd3 {[%emt 0:00:01]} Nbd7 {[%emt 0:00:36]} 7. e5 {[%emt 0:02:00]} Ne8 {[%emt 0:00:04]} 8. Qe2 {[%emt 0:00:51]} c5 {[%emt 0:01:06]} 9. Be3 {[%emt 0:06:04]} cxd4 {[%emt 0:00:34]} 10. Bxd4 {[%emt 0:00:06]} Nb8 {[%emt 0:00:03]} 11. exd6 {[%emt 0:04:14]} Nxd6 {[%emt 0:02:17]} 12. Bxg7 {[%emt 0:00:57]} Kxg7 {[%emt 0:00:10]} 13. O-O-O {[%emt 0:03:06]} Nc6 {[%emt 0:07:40]} 14. Qf2 {[%emt 0:04:25]} Qa5 {[%emt 0:03:08]} 15. a3 {[%emt 0:01:31]} Bg4 {[%emt 0:21:40]} 16. Ne2 {[%emt 0:06:26]} Rac8 {[%emt 0:07:59]} 17. h3 {[%emt 0:02:10]} Bf5 {[%emt 0:06:39]} 18. Bxf5 {[%emt 0:08:48]} Qxf5 {[%emt 0:02:40]} 19. Nfd4 {[%emt 0:01:47]} Nxd4 {[%emt 0:09:23]} 20. Nxd4 {[%emt 0:00:07]} Qc5 {[%emt 0:01:33]} 21. Rhe1 {[%emt 0:05:29]} Nc4 {[%emt 0:03:39]} 22. Rd3 {[%emt 0:10:08]} a5 {[%emt 0:10:17]} 23. f5 {[%emt 0:07:49]} b5 {[%emt 0:07:50]} 24. Rf3 {[%emt 0:01:32]} Kg8 {[%emt 0:02:02]} 25. Nb3 {[%emt 0:04:18]} Qc7 {[%emt 0:02:39]} 26. Rf1 {[%emt 0:06:06]} Ne5 {[%emt 0:02:08]} 27. Rc3 {[%emt 0:00:19]} Qd6 {[%emt 0:01:12]} 28. Rd1 {[%emt 0:05:19]} Qa6 {[%emt 0:02:12]} 29. Rxc8 {[%emt 0:02:25]} Rxc8 {[%emt 0:00:08]} 30. Rd5 {[%emt 0:05:47]} Nc4 {[%emt 0:03:02]} 31. Qd4 {[%emt 0:04:17]} Qa8 {[%emt 0:00:13]} 32. Kb1 {[%emt 0:04:30]} Ne3 {[%emt 0:01:13]} 33. Rc5 {[%emt 0:00:18]} Nxf5 {[%emt 0:00:27]} 34. Rxc8+ {[%emt 0:00:46]} Qxc8 {[%emt 0:00:05]} 35. Qa7 {[%emt 0:01:17]} a4 {[%emt 0:00:26]} 36. Nd4 {[%emt 0:00:28]} Nxd4 {[%emt 0:00:42]} 37. Qxd4 {[%emt 0:00:07]} Qb7 {[%emt 0:00:42]} 38. Qd2 {[%emt 0:00:12]} Kg7 {[%emt 0:01:37]} 39. Qd4+ {[%emt 0:00:18]} f6 {[%emt 0:00:08]} 40. Qd2 {[%emt 0:00:00]} e5 {[%emt 0:00:00]} 41. b3 {[%emt 0:00:23]} h5 {[%emt 0:11:35]} 42. Ka2 {[%emt 0:00:39]} h4 {[%emt 0:00:16]} 43. c4 {[%emt 0:00:31]} bxc4 {[%emt 0:00:33]} 44. bxc4 {[%emt 0:00:06]} Qb3+ {[%emt 0:00:09]} 0-1

[Event "ROU-chT 1st League 2019"]
[Site "Mamaia"]
[Date "2019.09.23"]
[Round "3.14"]
[White "Deac, Bogdan-Daniel"]
[Black "Florescu, Codrut-Constantin"]
[Result "1-0"]
[ECO "D37"]
[WhiteElo "2613"]
[BlackElo "2286"]
[Annotator "RC"]
[PlyCount "79"]
[EventDate "2019.09.21"]
[EventType "team-tourn"]
[EventCountry "ROU"]
[SourceTitle "playchess.com"]
[Source "ChessBase"]
[SourceQuality "1"]
[TimeControl "40/5400+30:1800+30"]

1. Nf3 {[%emt 0:00:00]} e6 {[%emt 0:00:25]} 2. c4 {[%emt 0:00:00]} d5 {[%emt 0:01:34]} 3. d4 {[%emt 0:00:06]} Nf6 {[%emt 0:00:41]} 4. Nc3 {[%emt 0:02:06]} Be7 {[%emt 0:00:10]} 5. Bf4 {[%emt 0:00:08]} O-O {[%emt 0:00:19]} 6. e3 {[%emt 0:00:03]} b6 {[%emt 0:00:12]} 7. Bd3 {[%emt 0:00:12]} dxc4 {[%emt 0:03:25]} 8. Bxc4 {[%emt 0:00:03]} Bb7 {[%emt 0:00:07]} 9. O-O {[%emt 0:03:24]} a6 {[%emt 0:00:18]} 10. Qc2 {[%emt 0:03:34]} b5 {[%emt 0:14:36]} 11. Bd3 {[%emt 0:00:13]} c5 {[%emt 0:01:47]} 12. dxc5 {[%emt 0:00:03]} Bxc5 {[%emt 0:00:19]} 13. Rfd1 {[%emt 0:00:07]} Qe7 {[%emt 0:28:21]} 14. Ng5 {[%emt 0:17:45]} h6 {[%emt 0:05:32]} 15. Nge4 {[%emt 0:02:43]} Nbd7 {[%emt 0:00:35]} 16. Nxc5 {[%emt 0:00:17]} Qxc5 {[%emt 0:00:11]} 17. Bd6 {[%emt 0:05:22]} Qc6 {[%emt 0:00:14]} 18. f3 {[%emt 0:01:52]} Rfc8 {[%emt 0:00:18]} 19. Qf2 {[%emt 0:05:00]} Kh8 {[%emt 0:07:06]} 20. Bf1 {[%emt 0:00:53]} Qb6 {[%emt 0:09:37]} 21. e4 {[%emt 0:02:35]} Qxf2+ {[%emt 0:01:13]} 22. Kxf2 {[%emt 0:00:11]} Nb6 {[%emt 0:00:04]} 23. Rd4 {[%emt 0:02:13]} Nc4 {[%emt 0:00:54]} 24. Bxc4 {[%emt 0:00:50]} Rxc4 {[%emt 0:00:07]} 25. Rxc4 {[%emt 0:01:49]} bxc4 {[%emt 0:00:04]} 26. Rd1 {[%emt 0:04:54]} Rd8 {[%emt 0:04:44]} 27. Bc7 {[%emt 0:12:26]} Rxd1 {[%emt 0:00:10]} 28. Nxd1 {[%emt 0:00:02]} Ne8 {[%emt 0:04:38]} 29. Bb8 {[%emt 0:05:45]} Bc6 {[%emt 0:13:40]} 30. Ke3 {[%emt 0:00:14]} Ba4 {[%emt 0:00:11]} 31. Nc3 {[%emt 0:00:05]} Bc2 {[%emt 0:00:06]} 32. Kd4 {[%emt 0:00:34]} Bd3 {[%emt 0:00:28]} 33. b4 {[%emt 0:00:39]} Nf6 {[%emt 0:01:27]} 34. a4 {[%emt 0:02:17]} Bf1 {[%emt 0:00:31]} 35. g4 {[%emt 0:07:26]} Nd7 {[%emt 0:00:20]} 36. Bc7 {[%emt 0:00:06]} f5 {[%emt 0:01:57]} 37. a5 {[%emt 0:13:40]} fxg4 {[%emt 0:00:24]} 38. fxg4 {[%emt 0:00:12]} e5+ {[%emt 0:01:01]} 39. Ke3 {[%emt 0:05:59]} Bh3 {[%emt 0:00:06]} 40. b5 {[%emt 0:00:00]} 1-0

[Event "ROU-chT 1st League 2019"]
[Site "Mamaia"]
[Date "2019.09.23"]
[Round "3.17"]
[White "Horvat, Dan-Sebastian"]
[Black "Nevednichy, Vladislav"]
[Result "0-1"]
[ECO "A36"]
[WhiteElo "2099"]
[BlackElo "2522"]
[Annotator "ChessBase"]
[PlyCount "82"]
[EventDate "2019.09.21"]
[EventType "team-tourn"]
[EventCountry "ROU"]
[SourceTitle "playchess.com"]
[Source "ChessBase"]
[SourceQuality "1"]
[TimeControl "40/5400+30:1800+30"]

1. c4 {[%emt 0:00:00]} g6 {[%emt 0:00:00]} 2. Nc3 {[%emt 0:00:00]} Bg7 {[%emt 0:00:03]} 3. g3 {[%emt 0:00:00]} c5 {[%emt 0:00:18]} 4. Bg2 {[%emt 0:00:25]} Nc6 {[%emt 0:00:10]} 5. e4 {[%emt 0:01:35]} e6 {[%emt 0:04:23]} 6. Nge2 {[%emt 0:02:07]} d6 {[%emt 0:00:35]} 7. d3 {[%emt 0:02:05]} Nge7 {[%emt 0:00:06]} 8. O-O {[%emt 0:00:32]} O-O {[%emt 0:00:25]} 9. Be3 {[%emt 0:06:09]} Nd4 {[%emt 0:00:12]} 10. f4 {[%emt 0:05:23]} Rb8 {[%emt 0:02:05]} 11. Qd2 {[%emt 0:05:15]} a6 {[%emt 0:03:53]} 12. Rae1 {[%emt 0:02:15]} b6 {[%emt 0:04:39]} 13. b3 {[%emt 0:12:23]} Bb7 {[%emt 0:12:29]} 14. Kh1 {[%emt 0:02:18]} Qd7 {[%emt 0:06:10]} 15. Rf2 {[%emt 0:08:56]} f5 {[%emt 0:02:47]} 16. Ng1 {[%emt 0:02:31]} Rbe8 {[%emt 0:07:50]} 17. Nf3 {[%emt 0:08:31]} Nec6 {[%emt 0:03:52]} 18. h4 {[%emt 0:04:05]} b5 {[%emt 0:05:20]} 19. cxb5 {[%emt 0:12:28]} axb5 {[%emt 0:00:31]} 20. Bxd4 {[%emt 0:05:16]} Nxd4 {[%emt 0:02:10]} 21. e5 {[%emt 0:00:07]} Bxf3 {[%emt 0:03:36]} 22. Bxf3 {[%emt 0:01:31]} dxe5 {[%emt 0:00:27]} 23. fxe5 {[%emt 0:00:16]} f4 {[%emt 0:05:16]} 24. gxf4 {[%emt 0:01:43]} Qe7 {[%emt 0:00:30]} 25. Kg2 {[%emt 0:06:13]} Qxh4 {[%emt 0:01:30]} 26. Bd1 {[%emt 0:00:04]} Rd8 {[%emt 0:09:54]} 27. Rh1 {[%emt 0:00:51]} Qe7 {[%emt 0:00:08]} 28. Ne4 {[%emt 0:00:48]} Nf5 {[%emt 0:01:13]} 29. Qc3 {[%emt 0:05:34]} Rd5 {[%emt 0:05:34]} 30. Rh3 {[%emt 0:00:12]} b4 {[%emt 0:01:22]} 31. Qd2 {[%emt 0:02:42]} Rfd8 {[%emt 0:02:04]} 32. Bg4 {[%emt 0:01:22]} Rd4 {[%emt 0:08:35]} 33. Bxf5 {[%emt 0:01:33]} exf5 {[%emt 0:00:02]} 34. Nd6 {[%emt 0:00:37]} Qe6 {[%emt 0:00:09]} 35. Qe3 {[%emt 0:00:50]} Bf8 {[%emt 0:00:37]} 36. Nc4 {[%emt 0:00:25]} Qd5+ {[%emt 0:02:05]} 37. Rff3 {[%emt 0:00:06]} Qa8 {[%emt 0:00:13]} 38. Qe2 {[%emt 0:01:17]} Rxf4 {[%emt 0:00:31]} 39. Kf2 {[%emt 0:00:29]} Rxf3+ {[%emt 0:01:13]} 40. Rxf3 {[%emt 0:00:00]} Qd5 {[%emt 0:00:00]} 41. e6 {[%emt 0:02:52]} Bg7 {[%emt 0:01:18]} 0-1

[Event "ROU-chT 1st League 2019"]
[Site "Mamaia"]
[Date "2019.09.23"]
[Round "3.18"]
[White "Costachi, Mihnea"]
[Black "Bobocea, Laurentiu-Vlad"]
[Result "1-0"]
[ECO "D18"]
[WhiteElo "2463"]
[BlackElo "1921"]
[Annotator "ChessBase"]
[PlyCount "59"]
[EventDate "2019.09.21"]
[EventType "team-tourn"]
[EventCountry "ROU"]
[SourceTitle "playchess.com"]
[Source "ChessBase"]
[SourceQuality "1"]
[TimeControl "40/5400+30:1800+30"]

1. d4 {[%emt 0:00:00]} d5 {[%emt 0:00:00]} 2. c4 {[%emt 0:00:11]} c6 {[%emt 0:00:00]} 3. Nf3 {[%emt 0:00:36]} Nf6 {[%emt 0:00:00]} 4. Nc3 {[%emt 0:01:22]} dxc4 {[%emt 0:00:00]} 5. a4 {[%emt 0:00:04]} Bf5 {[%emt 0:00:07]} 6. e3 {[%emt 0:00:09]} e6 {[%emt 0:00:25]} 7. Bxc4 {[%emt 0:00:05]} Bb4 {[%emt 0:00:07]} 8. O-O {[%emt 0:00:04]} Nbd7 {[%emt 0:00:28]} 9. Qe2 {[%emt 0:00:06]} Bg6 {[%emt 0:01:33]} 10. e4 {[%emt 0:08:33]} O-O {[%emt 0:00:11]} 11. e5 {[%emt 0:07:22]} Nd5 {[%emt 0:00:06]} 12. Ne4 {[%emt 0:00:23]} a5 {[%emt 0:11:49]} 13. Bd3 {[%emt 0:05:06]} h6 {[%emt 0:08:18]} 14. Rd1 {[%emt 0:02:14]} Be7 {[%emt 0:14:22]} 15. Ng3 {[%emt 0:02:27]} Re8 {[%emt 0:14:04]} 16. Bxg6 {[%emt 0:02:57]} fxg6 {[%emt 0:01:41]} 17. Nd2 {[%emt 0:00:46]} g5 {[%emt 0:10:52]} 18. Nde4 {[%emt 0:01:12]} b6 {[%emt 0:17:09]} 19. Qg4 {[%emt 0:01:15]} Bf8 {[%emt 0:05:57]} 20. h4 {[%emt 0:05:05]} gxh4 {[%emt 0:00:50]} 21. Nh5 {[%emt 0:00:07]} Kh7 {[%emt 0:02:53]} 22. Ra3 {[%emt 0:01:14]} g6 {[%emt 0:03:56]} 23. Rf3 {[%emt 0:00:25]} Re7 {[%emt 0:01:52]} 24. Nhf6+ {[%emt 0:05:34]} N7xf6 {[%emt 0:00:48]} 25. exf6 {[%emt 0:04:28]} Rd7 {[%emt 0:02:25]} 26. Qxh4 {[%emt 0:00:16]} Kg8 {[%emt 0:01:31]} 27. Rg3 {[%emt 0:06:45]} Qe8 {[%emt 0:00:45]} 28. Rdd3 {[%emt 0:00:07]} Kh8 {[%emt 0:01:02]} 29. Rdf3 {[%emt 0:01:34]} Raa7 {[%emt 0:00:42]} 30. Ng5 {[%emt 0:03:15]} 1-0

[Event "ROU-chT 1st League 2019"]
[Site "Mamaia"]
[Date "2019.09.23"]
[Round "3.20"]
[White "Sivuk, Vitaly"]
[Black "Morozov, Nichita"]
[Result "1-0"]
[ECO "A11"]
[WhiteElo "2559"]
[BlackElo "2394"]
[Annotator "ChessBase"]
[PlyCount "95"]
[EventDate "2019.09.21"]
[EventType "team-tourn"]
[EventCountry "ROU"]
[SourceTitle "playchess.com"]
[Source "ChessBase"]
[SourceQuality "1"]
[TimeControl "40/5400+30:1800+30"]

1. c4 {[%emt 0:00:00]} c6 {[%emt 0:00:22]} 2. Nf3 {[%emt 0:00:20]} d5 {[%emt 0:00:10]} 3. e3 {[%emt 0:00:37]} Nf6 {[%emt 0:00:14]} 4. Nc3 {[%emt 0:00:43]} a6 {[%emt 0:02:49]} 5. d4 {[%emt 0:01:51]} Bf5 {[%emt 0:00:57]} 6. Ne5 {[%emt 0:01:09]} h6 {[%emt 0:03:12]} 7. Qb3 {[%emt 0:03:16]} Ra7 {[%emt 0:05:17]} 8. cxd5 {[%emt 0:00:47]} cxd5 {[%emt 0:00:09]} 9. e4 {[%emt 0:00:08]} Bxe4 {[%emt 0:05:14]} 10. Nxe4 {[%emt 0:01:44]} Nxe4 {[%emt 0:00:35]} 11. Qa4+ {[%emt 0:01:13]} Nd7 {[%emt 0:18:23]} 12. Bb5 {[%emt 0:00:19]} Nef6 {[%emt 0:00:04]} 13. O-O {[%emt 0:00:10]} Ra8 {[%emt 0:01:45]} 14. Bd3 {[%emt 0:01:50]} e6 {[%emt 0:03:11]} 15. Ng6 {[%emt 0:00:28]} Rg8 {[%emt 0:08:21]} 16. Bf4 {[%emt 0:09:11]} b5 {[%emt 0:01:08]} 17. Qb3 {[%emt 0:00:14]} Nh5 {[%emt 0:00:48]} 18. Rfe1 {[%emt 0:03:18]} Nxf4 {[%emt 0:00:19]} 19. Nxf4 {[%emt 0:00:07]} Be7 {[%emt 0:00:10]} 20. Rxe6 {[%emt 0:13:24]} g5 {[%emt 0:00:07]} 21. Re2 {[%emt 0:27:44]} gxf4 {[%emt 0:02:15]} 22. Rae1 {[%emt 0:00:40]} Kf8 {[%emt 0:00:39]} 23. Rxe7 {[%emt 0:00:44]} Nf6 {[%emt 0:00:31]} 24. Qb4 {[%emt 0:05:48]} Kg7 {[%emt 0:00:28]} 25. Bf5 {[%emt 0:00:29]} Re8 {[%emt 0:03:18]} 26. R7e5 {[%emt 0:00:44]} Rxe5 {[%emt 0:04:44]} 27. dxe5 {[%emt 0:00:26]} Nh5 {[%emt 0:00:35]} 28. Bg4 {[%emt 0:03:35]} Qg5 {[%emt 0:00:19]} 29. Bxh5 {[%emt 0:02:42]} Qxh5 {[%emt 0:00:03]} 30. Qxf4 {[%emt 0:00:09]} Qg5 {[%emt 0:00:02]} 31. Qd4 {[%emt 0:00:12]} Rd8 {[%emt 0:00:03]} 32. Re3 {[%emt 0:00:20]} Kh7 {[%emt 0:00:07]} 33. h4 {[%emt 0:00:32]} Qg6 {[%emt 0:00:12]} 34. Rf3 {[%emt 0:01:50]} Rd7 {[%emt 0:01:33]} 35. a3 {[%emt 0:04:42]} Qb1+ {[%emt 0:01:11]} 36. Kh2 {[%emt 0:01:34]} Qe4 {[%emt 0:00:02]} 37. Qxe4+ {[%emt 0:01:07]} dxe4 {[%emt 0:00:02]} 38. Rf4 {[%emt 0:00:10]} Kg7 {[%emt 0:00:02]} 39. Rxe4 {[%emt 0:01:02]} Rd2 {[%emt 0:00:22]} 40. Rg4+ {[%emt 0:00:00]} Kf8 {[%emt 0:00:00]} 41. Rf4 {[%emt 0:00:17]} Rxb2 {[%emt 0:01:38]} 42. e6 {[%emt 0:00:07]} Rb3 {[%emt 0:00:12]} 43. Rxf7+ {[%emt 0:00:31]} Ke8 {[%emt 0:00:02]} 44. f4 {[%emt 0:00:17]} Rxa3 {[%emt 0:00:04]} 45. f5 {[%emt 0:00:04]} Re3 {[%emt 0:00:03]} 46. g4 {[%emt 0:00:52]} b4 {[%emt 0:00:44]} 47. g5 {[%emt 0:00:10]} hxg5 {[%emt 0:00:04]} 48. hxg5 {[%emt 0:00:03]} 1-0